Cogmind - Beta 13 @@@ ROGUE MODE // 2024.04.04 @ 12:12:26 Player: MORONI274 Result: Destroyed by H-55 Commando with Gauss Rifle Performance ------------- Evolutions (2) 1000 Regions Visited (4) 800 Robots Destroyed (64) 320 Value Destroyed (1457) 1457 Prototype IDs (2) 40 Alien Tech Used (0) 0 Bonus (-398) -398 TOTAL SCORE: 3219 Bonus ------- High Alert Combat Kills 113 Follower Combat Kills 151 Friendly Fire -662 Cogmind --------- Core Integrity 0/550 Matter 7/300 Energy 263/265 System Corruption 19% Temperature Cool (1) Movement Treading (160) Location -8/Materials Parts ------- > --- POWER (2) -------- Improved Ion Engine > --- PROPULSION (3) --- Light Treads > --- UTILITY (4) ------ Targeting Computer > --- WEAPON (2) ------- Grenade Launcher > --- INVENTORY (5) ---- Heavy Particle Cannon Shotgun Peak State ------------ > --- POWER ------------ Ion Engine > --- PROPULSION ------- Light Treads VTOL Module > --- UTILITY ---------- Small Storage Unit Improved Terrain Scanner Light Armor Plating Drone Bay > --- WEAPON ----------- Heavy Assault Rifle Rocket Launcher > --- INVENTORY -------- Wheel Wheel Targeting Computer Shotgun Shotgun Grenade Launcher Mini Grenade Launcher [Rating: 19] Favorites ----------- Power Ion Engine Engine Ion Engine Propulsion Light Treads Treads Light Treads Wheel Wheel Flight Unit VTOL Module Utility Small Storage Unit Device Improved Terrain Scanner Storage Small Storage Unit Processor Transport Network Coupler Protection Weapon Shielding Weapon Grenade Launcher Energy Gun EM Pulse Gun Ballistic Gun Heavy Assault Rifle Launcher Grenade Launcher Build | -11 -10 -9 -9 -8 ------- Run | Yrd Mat Mat Sto Mat Slots Evolved 4 | . . 2 . 2 Power 1 | . . . . 1 Propulsion 1 | . . . . 1 Utility 2 | . . 2 . . Weapon . | . . . . . Parts Attached 35 | 8 1 4 12 10 Power 6 | 2 . . 3 1 Engine 6 | 2 . . 3 1 Core . | . . . . . Reactor . | . . . . . Propulsion 9 | 2 . 1 4 2 Treads 6 | 2 . 1 1 2 Leg . | . . . . . Wheel 2 | . . . 2 . Hover . | . . . . . Flight 1 | . . . 1 . Utility 9 | 2 . 2 4 1 Device 2 | 1 . . 1 . Storage 3 | 1 . . 2 . Processor 2 | . . 1 . 1 Hackware . | . . . . . Protection 2 | . . 1 1 . Artifact . | . . . . . Weapon 11 | 2 1 1 1 6 Energy Gun 1 | 1 . . . . Energy Cannon . | . . . . . Ballistic Gun 3 | 1 . 1 . 1 Ballistic Cannon . | . . . . . Launcher 7 | . 1 . 1 5 Special Weapon . | . . . . . Impact Weapon . | . . . . . Slashing Weapon . | . . . . . Piercing Weapon . | . . . . . Special Melee Weapon . | . . . . . Unidentified Prototypes . | . . . . . Corrupted Parts 2 | . . . . 2 System Corruption 19 | . . . . 19 Parts Lost 21 | . . 1 7 13 Power 4 | . . . 3 1 Propulsion 6 | . . 1 2 3 Utility 5 | . . . 1 4 Weapon 6 | . . . 1 5 Highest Loss Streak 9 | . . 1 3 9 To Critical Strikes . | . . . . . Average Slot Usage (%) 89 | . 100 89 96 33 Engine 10 | . 14 11 10 5 Treads 18 | . 28 21 17 1 Wheel 1 | . . . 2 5 Device 11 | . 14 11 13 3 Storage 11 | . 14 11 10 5 Processor 5 | . . 2 8 1 Protection 7 | . . 11 10 1 Energy Gun 2 | . 12 . . . Ballistic Gun 10 | . 14 11 11 2 Launcher 8 | . 1 11 10 7 Naked Turns 8 | . . . . 8 Heaviest Build 27 | 15 16 18 27 27 Greatest Support 40 | 40 40 40 40 20 Greatest Overweight (x) 2 | . . . 1 2 Average Overweight (x) . | . . . . . Largest Inventory Capacity 8 | 8 8 8 8 8 Average Capacity 7 | 7 8 8 7 6 Most Carried 8 | 6 8 8 8 7 Average Carried 7 | 3 7 7 7 5 Final Capacity 8 | 8 8 8 8 5 Final Carried 8 | 5 8 8 7 2 Class Distribution -------------------- 49% | Scavenger-Mutant 46% | Mutant 4% | Commander-Mutant Dominant Class ---------------- Mutant | -10/Materials Mutant | -9/Materials Scavenger-Mutant | -9/Storage Mutant | -8/Materials Resources | -11 -10 -9 -9 -8 ----------- Run | Yrd Mat Mat Sto Mat Matter Collected 1038 | 292 43 192 422 89 Remotely . | . . . . . Salvage Created 1807 | 127 139 234 1064 243 Parts 115 | 3 11 15 65 21 Haulers Intercepted 3 | . . 1 2 . Recyclers Shooed 1 | . . . 1 . Parts Field Recycled . | . . . . . Retrieved Matter . | . . . . . Parts Self-Destructed . | . . . . . Prevented . | . . . . . Kills | -11 -10 -9 -9 -8 ------- Run | Yrd Mat Mat Sto Mat Combat Hostiles Destroyed 35 | . 4 3 13 15 Guns 8 | . 2 . 4 2 AOE 26 | . 2 3 9 12 Classes Destroyed 12 | 2 2 3 2 3 Worker 1 | . . . 1 . Builder 8 | . . 1 6 1 Tunneler 1 | 1 . . . . Hauler 3 | . . 1 2 . Recycler 7 | 1 . 1 5 . Operator 1 | . . . 1 . Watcher 4 | . 1 1 2 . Swarmer 8 | . . . . 8 Grunt 19 | . 4 1 12 2 Duelist 1 | . . . . 1 Sentry 10 | . . 2 5 3 Hunter 1 | . . . . 1 Best Kill Streak 14 | 2 2 6 6 14 Combat Bots Only 13 | . 2 2 4 13 Max Kills in Single Turn 3 | 1 1 2 3 2 Gunslinging . | . . . . . Exploded 2 | . 1 1 1 2 Melee . | . . . . . Uniques/NPCs Destroyed . | . . . . . Combat | -11 -10 -9 -9 -8 -------- Run | Yrd Mat Mat Sto Mat Hostile Shots Fired 203 | . 20 18 49 116 Missed 56 | . 8 1 18 29 Damage Taken 2398 | . 135 310 665 1288 Core 682 | . . 34 85 563 Absorbed by Shields . | . . . . . Redirected to Shielding 53 | . . 23 30 . Core Remaining (%) 90 | 100 100 . 70 . Volleys Fired 98 | 4 13 11 41 29 Largest 2 | 2 2 2 2 2 Hottest 63 | 60 60 53 56 63 Shots Fired 158 | 8 26 19 70 35 Gun 95 | 8 22 11 41 13 Cannon . | . . . . . Launcher 63 | . 4 8 29 22 Special . | . . . . . Kinetic 82 | 4 13 11 41 13 Thermal . | . . . . . Explosive 63 | . 4 8 29 22 Electromagnetic 13 | 4 9 . . . Robot Hit Streak 13 | 4 4 6 9 13 Robot Miss Streak 4 | 2 2 2 4 2 Penetration Max . | . . . . . Secondary Targets . | . . . . . Shots Hit Robots 81 | 5 8 9 36 23 Core Hits 119 | 2 10 11 60 36 Critical Kills . | . . . . . Critical Parts Destroyed . | . . . . . Critical Strikes . | . . . . . Melee Attacks . | . . . . . Impact . | . . . . . Slashing . | . . . . . Piercing . | . . . . . Sneak Attacks . | . . . . . Combat Hostiles . | . . . . . Follow-up Attacks . | . . . . . Damage Inflicted 4172 | 72 273 382 2167 1278 Guns 941 | 72 151 110 438 170 Cannons . | . . . . . Explosions 3174 | . 122 270 1728 1054 Melee . | . . . . . Ramming 57 | . . 2 1 54 Kinetic 821 | 27 76 110 438 170 Thermal . | . . . . . Explosive 3174 | . 122 270 1728 1054 Electromagnetic 120 | 45 75 . . . Impact . | . . . . . Slashing . | . . . . . Piercing . | . . . . . Highest Corruption 19 | . . 2 2 19 Average Corruption 2 | . . 2 2 18 Corruption Purged . | . . . . . Corruption Blocked . | . . . . . Effects 14 | . . 2 9 3 Message Errors 2 | . . . 1 1 Matter Fused 5 | . . 1 3 1 Heat Flow Errors 4 | . . 1 3 . Energy Discharges 1 | . . . 1 . Data Loss (minor) 1 | . . . . 1 Alerts 1 | . . . 1 . Overload Shots . | . . . . . Overflow Damage 95 | . . 20 35 40 Projectiles . | . . . . . Explosions 95 | . . 20 35 40 Melee . | . . . . . Knockbacks 1 | . . . . 1 Impact 1 | . . . . 1 Kinetic . | . . . . . Secondary . | . . . . . Self-Inflicted Damage 418 | . . 69 207 142 Shots 20 | . . 3 12 5 Rammed 21 | . . 2 1 18 Targets Rammed 21 | . . 2 1 18 Kicked . | . . . . . Crushed . | . . . . . Highest Temperature 257 | . 30 103 257 19 Average Temperature 43 | . 16 37 65 10 Received Heat Transfer 609 | . 72 96 171 270 Siege Activations . | . . . . . Robots Corrupted . | . . . . . Combat Hostiles . | . . . . . Parts Fried . | . . . . . Impact Corruptions . | . . . . . Robots Melted . | . . . . . Combat Hostiles . | . . . . . Parts Melted . | . . . . . Heat Transferred . | . . . . . Parts Sabotaged . | . . . . . Parts Stolen . | . . . . . Parts Stripped . | . . . . . Power Chain Reactions . | . . . . . Alert | -11 -10 -9 -9 -8 ------- Run | Yrd Mat Mat Sto Mat Peak Influence 661 | 10 79 219 553 661 Initial 233 | . 6 24 92 233 Average 201 | 4 38 102 233 578 Maximum Alert Level 2 | . . 1 2 2 Low Security (%) 55 | 100 100 75 38 . Level 1 31 | . . 24 53 13 Level 2 13 | . . . 8 86 Level 3 . | . . . . . Level 4 . | . . . . . Level 5 . | . . . . . High Security . | . . . . . Max Security . | . . . . . Squads Dispatched 4 | . 1 1 1 1 Investigation 1 | . . . 1 . Extermination . | . . . . . Reinforcement 3 | . 1 1 . 1 Assault . | . . . . . Garrison . | . . . . . Intercept . | . . . . . Searches Triggered . | . . . . . Construction Impeded 1 | . . 1 . . Haulers Reinforced . | . . . . . Active Scanning Responses . | . . . . . Cargo Convoy Interrupts . | . . . . . Stealth | -11 -10 -9 -9 -8 --------- Run | Yrd Mat Mat Sto Mat Distress Signals 2 | . . 1 1 . Communications Jammed . | . . . . . Distress Signals . | . . . . . Times Spotted 46 | . 6 5 19 16 Peak Tracking Total 10 | . 2 3 4 10 Tactical Retreats . | . . . . . Traps | -11 -10 -9 -9 -8 ------- Run | Yrd Mat Mat Sto Mat Traps Triggered 2 | . . 1 1 . Indirectly . | . . . . . Trap Hack Attempts . | . . . . . Triggered . | . . . . . Disarmed . | . . . . . Reprogrammed . | . . . . . Reused . | . . . . . Traps Extracted . | . . . . . Installed . | . . . . . Triggered . | . . . . . Machines | -11 -10 -9 -9 -8 ---------- Run | Yrd Mat Mat Sto Mat Machines Disabled 10 | . . 2 4 4 Max in Single Turn 1 | . . 1 1 1 Machines Repaired . | . . . . . Machines Dismantled . | . . . . . Machines Sabotaged . | . . . . . Overloaded Fab Kills . | . . . . . Hacking | -11 -10 -9 -9 -8 --------- Run | Yrd Mat Mat Sto Mat Machines Accessed 10 | . 3 1 6 . Terminals 8 | . 2 1 5 . Fabricators . | . . . . . Repair Stations . | . . . . . Recycling Units 2 | . 1 . 1 . Scanalyzers . | . . . . . Garrison Access . | . . . . . Total Hacks 13 | . 5 1 7 . Successful 9 | . 4 . 5 . Failed 4 | . 1 1 2 . Catastrophic 1 | . . . 1 . Database Lockouts . | . . . . . Manual 2 | . . . 2 . Terminals 9 | . 2 1 6 . Fabricators . | . . . . . Repair Stations . | . . . . . Recycling Units 4 | . 3 . 1 . Scanalyzers . | . . . . . Garrison Access . | . . . . . Terminal Hacks 5 | . 1 . 4 . Record 1 | . . . 1 . Robot Analysis 1 | . 1 . . . Prototype ID Bank 1 | . . . 1 . Open Door 1 | . . . 1 . Alert Level 1 | . . . 1 . Fabricator Hacks . | . . . . . Repair Station Hacks . | . . . . . Recycling Unit Hacks 4 | . 3 . 1 . Process 1 | . 1 . . . Report Inventory 3 | . 2 . 1 . Scanalyzer . | . . . . . Garrison Access Hacks . | . . . . . Unauthorized Hacks . | . . . . . Terminals . | . . . . . Fabricators . | . . . . . Repair Stations . | . . . . . Recycling Units . | . . . . . Scanalyzers . | . . . . . Garrison Access . | . . . . . Data Cores Recovered 1 | . . . 1 . Used . | . . . . . Hacking Detections 7 | . 2 . 5 . Full Trace Events 1 | . . . 1 . Feedback Events . | . . . . . Feedback Blocked . | . . . . . Robot Schematics Acquired . | . . . . . Robots Built . | . . . . . Authchips . | . . . . . Time . | . . . . . Total Robot Build Rating . | . . . . . Part Schematics Acquired . | . . . . . Parts Built . | . . . . . Authchips . | . . . . . Time . | . . . . . Total Part Build Rating . | . . . . . Parts Repaired . | . . . . . Time . | . . . . . Parts Recycled . | . . . . . Recycled Matter 2 | . 2 . . . Retrieved Matter . | . . . . . Retrieved Components . | . . . . . Parts Scanalyzed . | . . . . . Part Schematics Acquired . | . . . . . Parts Damaged . | . . . . . Bothacking | -11 -10 -9 -9 -8 ------------ Run | Yrd Mat Mat Sto Mat Used RIF Installer . | . . . . . Robots Hacked . | . . . . . Non-combat . | . . . . . Combat . | . . . . . Robot Hacks Applied . | . . . . . Relay Couplers Released . | . . . . . Fabnet Peak Effective % . | . . . . . Robots Rewired . | . . . . . Allies Hacked . | . . . . . Hacks Repelled . | . . . . . Allies | -11 -10 -9 -9 -8 -------- Run | Yrd Mat Mat Sto Mat Total Allies 10 | . . . 10 . Largest Group 10 | . . . 10 . Highest-Rated Group 88 | . . . 88 . Highest-Rated Ally 16 | . . . 16 . Total Orders . | . . . . . Ally Attacks 26 | . . . 26 . Total Damage 255 | . . . 255 . Kills 5 | . . . 5 . Allies Corrupted . | . . . . . Allies Melted . | . . . . . Intel | -11 -10 -9 -9 -8 ------- Run | Yrd Mat Mat Sto Mat Robot Analysis Total 1 | . 1 . . . Derelict Logs Recovered . | . . . . . Drone Launches 2 | . . . 2 . Drone Recoveries 2 | . . . 2 . Exploration | -11 -10 -9 -9 -8 ------------- Run | Yrd Mat Mat Sto Mat Turns Passed 2287 | 123 532 224 1149 259 Spaces Moved 1306 | 63 304 116 667 156 Core 54 | 5 . . . 49 Treads 1075 | 58 304 116 562 35 Legs . | . . . . . Wheels 177 | . . . 105 72 Hover . | . . . . . Flight . | . . . . . Fastest Speed 50 | 50 160 160 95 50 Average Speed 148 | 151 160 160 151 104 Slowest Speed 240 | 160 160 160 240 160 Overloaded Moves . | . . . . . Propulsion Burnouts . | . . . . . Robots Hopped . | . . . . . Cave-ins Triggered . | . . . . . Exploration Rate (%) 32 | 4 43 16 86 13 Regions Visited 4 Branch Regions 1 Pre-discovered Areas . | . . . . . Known Exits Taken . | . . . . . Unknown Exits Taken 4 | 1 1 1 1 . Scrap Searched . | . . . . . Spaces Dug 3 | . . . 3 . Terrain Destroyed 358 | . 14 41 190 113 Melee . | . . . . . Projectile . | . . . . . AOE 358 | . 14 41 190 113 Terrain Rammed . | . . . . . Walls Destroyed . | . . . . . Machines Disabled . | . . . . . Actions | -11 -10 -9 -9 -8 --------- Run | Yrd Mat Mat Sto Mat Total 1489 | 80 324 134 735 216 Wait . | . . . . . Move 1302 | 62 303 115 666 156 Hop . | . . . . . Pick Up 21 | 6 5 1 8 1 Fast Attach 17 | 5 . 2 8 2 Attach 14 | 2 . 1 3 8 Detach 2 | . . . . 2 Swap 4 | 1 1 1 1 . Drop 10 | . 2 1 7 . Fire 98 | 4 13 11 41 29 Melee . | . . . . . Ram 18 | . . . . 18 Kick . | . . . . . Crush 3 | . . 2 1 . Escape Stasis . | . . . . . Rewire . | . . . . . Trap . | . . . . . Miscellaneous . | . . . . . Route ------- -11/Scrapyard -10/Materials (discovered 3 exits: *Mat / [*Min] / [Sub]) -9/Materials -9/Storage -8/Materials History --------- Turn | Location | Event 41 | -11/Scrapyard | Discovered new exit (range 16) 124 | -11/Scrapyard | Entered Materials 304 | -10/Materials | Discovered new exit (range 7) 309 | -10/Materials | Build established: Mutant 434 | -10/Materials | Discovered new exit (range 16) 594 | -10/Materials | Discovered new exit (range 16) 656 | -10/Materials | Entered another Materials area 656 | -9/Materials | Evolved 2 slots: Utility x2 796 | -9/Materials | Discovered new exit (range 14) 880 | -9/Materials | Entered Storage 1119 | -9/Storage | Build established: Scavenger-Mutant 1205 | -9/Storage | Assisted by bots powering up and referring to "LRC-V3" 1338 | -9/Storage | Lost 8 allies 1890 | -9/Storage | Lost 3 parts (1n1u1w) 2004 | -9/Storage | Discovered new exit (range 16) 2029 | -9/Storage | Entered Materials 2029 | -8/Materials | Evolved 2 slots: Power x1, Propulsion x1 2114 | -8/Materials | Destroyed 13 combat bots 2156 | -8/Materials | Core integrity fell below 50% 2169 | -8/Materials | Lost 9 parts (1p2n3u3w) 2209 | -8/Materials | Core integrity fell below 20% 2232 | -8/Materials | System corruption reached 10% 2254 | -8/Materials | Lost 3 parts (1n1u1w) 2288 | -8/Materials | Destroyed by H-55 Commando with Gauss Rifle Last Messages --------------- 02235_ Integrated Corrupted Imp. Ion Engine (+9). 02242_ System corrupted: Matter fused (-9). 02246_ U-05 Engineer builds a Wall. 02251_ U-05 Engineer lays Concrete. 02257_ Slug penetrates Earth. 02257_ U-05 Engineer lays Concrete. 02258_ U-05 Engineer builds a Door. 02260_ Penetrated by Slug. 02260_ Rocket Launcher destroyed. 02262_ U-05 Engineer builds a Wall. 02263_ Slug penetrates Door. 02265_ System corrupted: Component data lost. 02266_ U-05 Engineer builds a Door. 02273_ Slug penetrates Door. 02274_ U-05 Engineer lays Concrete. 02276_ Slug penetrates Wall. 02280_ U-05 Engineer builds a Wall. 02281_ TWN|,F961UMN%E1RP%G2 02281_ U-05 Engineer builds a Door. 02282_ Slug penetrates Wall. Map ----- +----------------------------------------------------+ | ????????????????????????????????????? | | ????????????????????????????????????? | | ???????????????????? ?????????????? | | ???????????????????? #????????????? | | ???????????????????# #????????????? | | ???????????????????# #????????????? | | ???????????????????# #????????????? | | ????????????######## #????????????? | | ???#######??# # #????????????? | | ??## # #?## # #????????????? | | ?## ### # #????????????? | | ?# # ## ### ###########??? | | ## # # # # #??? | | # [ ! +??? | | ?## [ +##### # ! #??? | | ??# # # #??? | | ??# == ! +u + ???? | | ??# ! =[ # """ ""?????? | | ??# T" # ##### # """ ""?????? | | ??# " # # """ ""?????? | | ??# # # # # # ########??? | | ########## #t ## ####### #??? | | # # ### # #??? | | # # ##### #### # #??? | | # # hu # ### #### ####??? | | # + # @#### #### # # #?????? | | # # # #?# # # #?????? | | # # # #?# # ] # #?????? | | # # # #?# # + #?????? | | #[ # # #?# # " ###?????? | | # # # #?# # T #???????? | | ###### # #?# # " #???????? | | ?????# # ! ] #?# # #???????? | | ?????# # #?# ######???????? | | ?????# ####### ###?? ?????????????? | | ?????# #?????###???? ?????????????? | | ?????# #????#??????? ?????????????? | | ????## #???????????? ?????????????? | | ?????# #??????#????? ?????????????? | | ?????# ##?????????????????????????? | | #????# #????#?????????????????????? | | ?????# #??????????????????????????? | | ?????# #??????????????????????????? | | ?????#####??????????#???????????????? | | ????????????????????????????????????? | | ????????????????????????????????????? | | ????????????????????????????????????? | | ????????????????????????????????????? | | ??????????????????#?????????????????? | | ????????????????????????????????????? | +----------------------------------------------------+ Best States ------------- Heat Dissipation 31 Energy Generation 12 Energy Capacity 265 Matter Stores 300 Matter Capacity 500 Sight Range 16 Terrain Scan Range 16 Terrain Scan Density 10 Armor Coverage 150 Weapon Shielding 33 Evasion (%) 50 Targeting Accuracy 5 Recoil Reduction 2 Item Schematics ----------------- None Robot Schematics ------------------ None Fabricated ------------ Nothing Alien Tech Used ----------------- None Achievements -------------- The More The Merrier Challenges ------------ None Game ------ Seed ThunderDiametricArray Manual? 0 Play Time 00:25:10 Cumulative 7.7 hours Start 2024.04.03 @ 13:03:09 End 2024.04.04 @ 12:12:26 Sessions 5 Manual Loads 0 Difficulty Rogue Special Mode None Game No. 13 Rogue 13 Adventurer 0 Explorer 0 Win Type - Total 0 Types 0/0/0/0/0/0/0/0/0 Lore% 9 Gallery% 14 Achievement% 14 Wizard Run 0 Options --------- Layout 2 ASCII 0 Keyboard 0 Movement Arrows Keybinds 0 Fullscreen 0 Font 14/SmallcapsGlow Map View 59x54 Zoom Use 0% Tactical HUD 1 Map Filters NONE Filters NONE Steam SD RUN: 55a2a11f-971a-4b7f-b161-ab21e901b29a